bitfinex-derivatives/quotes_SOLF0:USTF0_20250716
["timestamp","ask_amount","ask_price","bid_price","bid_amount"]
[1752625661905,6.0825,164.39,164.35,3.40338812]
[1752625662099,236.0,164.41,164.35,9.48698812]
[1752625662303,236.0,164.41,164.37,3.40338812]
[1752625663008,6.0819,164.4,164.37,3.40338812]
[1752625663607,6.0823,164.39,164.37,3.40338812]
[1752625663807,236.0,164.41,164.37,3.40338812]
[1752625664811,6.0819,164.4,164.37,3.40338812]
[1752625666117,3.40338812,164.42,164.35,3.40338812]
[1752625666409,5.91094825,164.42,164.35,3.40338812]
[1752625667012,5.91094825,164.42,164.34,3.40338812]
[1752625667207,5.91087368,164.42,164.34,3.40338812]
[1752625667407,6.0826,164.39,164.34,3.40338812]
[1752625668316,6.0828,164.38,164.34,3.40338812]
[1752625669113,6.0828,164.38,164.33,6.0843]
[1752625669314,6.0828,164.38,164.34,3.40338812]
[1752625669914,5.91027711,164.42,164.31,6.085]
[1752625670117,5.91027711,164.42,164.33,3.40338812]
[1752625670915,6.0832,164.37,164.33,3.40338812]
[1752625671920,5.91027711,164.42,164.33,9.48778812]
[1752625672122,236.0,164.41,164.33,9.48778812]
[1752625672323,236.0,164.41,164.33,6.0844]
[1752625672622,236.0,164.41,164.34,3.40338812]
[1752625674324,6.0832,164.37,164.34,3.40338812]
[1752625675228,6.0834,164.36,164.34,3.40338812]
[1752625678926,6.0834,164.36,164.34,3.40758459]
[1752625679123,6.0834,164.36,164.33,6.0844]
[1752625679327,6.0834,164.36,164.35,2.19472199]
[1752625679527,6.0834,164.36,164.33,6.0844]
[1752625679730,6.0834,164.36,164.35,2.19472199]
[1752625679932,6.0831,164.37,164.35,2.19472199]
[1752625680128,236.0,164.41,164.36,2.19472199]
[1752625680329,236.0,164.41,164.38,2.19472199]
[1752625680633,6.0826,164.38,164.37,2.19472199]
[1752625682136,6.0824,164.39,164.37,2.19472199]
[1752625682336,2.19472199,164.4,164.3,2.19472199]
[1752625682534,236.0,164.39,164.36,2.19472199]
[1752625683236,6.0833,164.37,164.36,2.19472199]
[1752625683932,6.0828,164.38,164.36,2.19472199]
[1752625684332,6.083,164.37,164.36,2.19472199]
[1752625684632,6.083,164.37,164.31,180.12]
[1752625684837,6.083,164.37,164.33,6.0842]
[1752625685042,6.0828,164.38,164.36,2.19494511]
[1752625685239,6.0828,164.38,164.34,3.4076868]
[1752625685438,6.0828,164.38,164.34,9.4914868]
[1752625685639,6.083,164.37,164.34,9.4914868]
[1752625686141,242.0826,164.39,164.34,9.4914868]
[1752625687341,6.0826,164.38,164.34,9.4914868]
[1752625687540,236.0,164.39,164.34,3.4076868]
[1752625688040,242.0824,164.39,164.34,3.4076868]
[1752625688241,242.0824,164.39,164.35,6.0836]
[1752625688932,242.0824,164.39,164.36,6.0833]
[1752625689331,242.0824,164.39,164.34,3.4076868]
[1752625689536,242.0824,164.39,164.35,6.0835]
[1752625690036,242.0824,164.39,164.36,6.0833]
[1752625690237,6.0827,164.38,164.34,3.4076868]
[1752625690640,236.0,164.39,164.28,1.05899]
[1752625690839,6.0838,164.35,164.32,3.4076868]
[1752625691143,236.0,164.39,164.32,9.4924868]
[1752625691539,6.0837,164.36,164.32,6.0848]
[1752625691842,236.0,164.39,164.33,3.4076868]
[1752625692146,6.0836,164.36,164.33,3.4076868]
[1752625693646,6.0836,164.36,164.33,9.4920868]
[1752625694145,6.0831,164.37,164.33,9.4920868]
[1752625696448,6.0835,164.36,164.33,3.4076868]
[1752625696746,6.0835,164.36,164.33,3.44613002]
[1752625698449,6.0835,164.36,164.33,9.53053002]
[1752625698744,0.04160723,164.37,164.33,0.03844322]
[1752625698952,0.04160723,164.37,164.35,3.4076868]
[1752625699345,236.0,164.39,164.35,3.4076868]
[1752625699546,236.0,164.39,164.38,3.4076868]
[1752625699748,132.6637168,164.42,164.38,3.4076868]
[1752625699945,6.0821,164.4,164.38,3.4076868]
[1752625700346,132.6637168,164.42,164.35,3.4076868]
[1752625700750,6.0825,164.39,164.37,0.04196378]
[1752625701545,132.6637168,164.42,164.37,3.44965058]
[1752625701748,132.6637168,164.42,164.39,3.4076868]
[1752625702154,138.7451168,164.42,164.39,3.4076868]
[1752625702648,132.6637168,164.42,164.39,9.4898868]
[1752625702848,179.9,164.47,164.41,3.4076868]
[1752625703354,6.0802,164.45,164.41,9.4889868]
[1752625703653,6.0802,164.45,164.42,0.04326438]
[1752625704254,6.0798,164.46,164.42,0.04326438]
[1752625706358,6.0798,164.46,164.43,3.4076868]
[1752625706557,185.9795,164.47,164.43,3.4076868]
[1752625707159,179.9,164.47,164.43,3.4076868]
[1752625707457,179.9,164.47,164.43,9.4881868]
[1752625707656,179.9,164.47,164.43,3.4076868]
[1752625707859,236.0,164.48,164.45,3.4076868]
[1752625708259,236.0,164.48,164.45,9.4874868]
[1752625708461,236.0,164.48,164.47,3.4076868]
[1752625709956,236.0,164.48,164.46,0.04052954]
[1752625710160,236.0,164.48,164.47,3.4076868]
[1752625711163,6.0789,164.49,164.47,3.4076868]
[1752625711565,6.0783,164.5,164.47,3.4076868]
[1752625713867,6.078,164.51,164.47,9.4869868]
[1752625714169,179.76,164.53,164.47,3.4076868]
[1752625714560,179.76,164.53,164.49,3.4076868]
[1752625714760,179.76,164.53,164.51,3.4076868]
[1752625715670,6.0769,164.54,164.51,3.4076868]
[1752625716172,21.10104665,164.55,164.51,3.4076868]
[1752625717575,21.10104665,164.55,164.51,9.4854868]
[1752625719171,3.4076868,164.53,164.5,0.04022706]
[1752625719371,3.4076868,164.53,164.34,6.78225442]
[1752625719372,179.66,164.52,164.36,530.85057848]
[1752625719571,179.66,164.52,164.43,3.4076868]
[1752625719572,3.4076868,164.51,164.43,3.4076868]
[1752625719881,183.0676868,164.52,164.36,525.78]
[1752625720179,3.4076868,164.5,164.43,3.4076868]
[1752625720377,199.2658868,164.5,164.43,3.4076868]
[1752625720577,189.78,164.5,164.43,3.4076868]
[1752625720774,189.78,164.5,164.36,525.78]
[1752625720775,189.78,164.5,164.45,3.4076868]
[1752625720974,195.8583,164.5,164.45,3.4076868]
[1752625721176,189.78,164.5,164.45,3.4076868]
[1752625721881,195.8582,164.5,164.45,3.4076868]
[1752625722176,195.8582,164.5,164.44,3.4076868]
[1752625722974,189.78,164.5,164.44,3.4076868]
[1752625723277,193.1876868,164.5,164.44,3.4076868]
[1752625724074,6.0789,164.48,164.44,3.4076868]
[1752625726275,242.0787,164.49,164.44,3.4076868]
[1752625726874,236.0,164.49,164.44,3.4076868]
[1752625727075,236.0,164.49,164.36,525.78]
[1752625727276,236.0,164.49,164.45,3.4076868]
[1752625727682,242.0786,164.49,164.45,3.4076868]
[1752625729383,236.0,164.49,164.45,3.4076868]
[1752625730982,242.0786,164.49,164.45,9.4875868]
[1752625731183,425.4,164.52,164.47,3.4076868]
[1752625731879,6.0783,164.5,164.47,3.4076868]
[1752625732382,6.0779,164.51,164.47,3.4076868]
[1752625732581,21.10104665,164.55,164.49,3.4076868]
[1752625732780,21.10104665,164.55,164.51,3.4076868]
[1752625733180,6.0768,164.54,164.51,3.4076868]
[1752625733477,21.10104665,164.55,164.43,3.4076868]
[1752625733681,6.0777,164.52,164.48,3.4076868]
[1752625734479,21.10104665,164.55,164.48,3.4076868]
[1752625734681,21.10104665,164.55,164.5,3.4076868]
[1752625735483,6.0769,164.54,164.5,3.4076868]
[1752625736495,6.0769,164.54,164.5,9.4857868]
[1752625736793,21.10104665,164.55,164.52,3.4076868]
[1752625737493,27.17744665,164.55,164.52,3.4076868]
[1752625739191,6.0764,164.55,164.52,3.4076868]
[1752625739792,6.0767,164.54,164.51,3.4076868]
[1752625741496,236.0,164.56,164.51,3.4076868]
[1752625741497,6.0765,164.55,164.51,3.4076868]
[1752625742500,6.0767,164.54,164.51,3.4076868]
[1752625743400,6.0764,164.55,164.51,9.4854868]
[1752625743600,236.0,164.56,164.51,3.4076868]
[1752625744793,236.0,164.56,164.53,3.4076868]
[1752625744998,6.80274214,164.61,164.55,3.4076868]
[1752625744999,5.0956121,164.58,164.55,3.4076868]
[1752625745397,6.0755,164.58,164.55,3.4076868]
[1752625746801,6.0756,164.57,164.55,3.4076868]
[1752625749996,6.0759,164.56,164.46,525.42]
[1752625750308,6.0759,164.56,164.53,3.4076868]
[1752625753210,6.0763,164.55,164.53,3.4076868]
[1752625753702,241.0956121,164.58,164.53,3.4076868]
[1752625753906,6.0761,164.56,164.53,3.4076868]
[1752625757308,6.0757,164.57,164.53,3.4076868]
[1752625757711,241.0956121,164.58,164.55,3.4076868]
[1752625757902,242.0754,164.58,164.55,3.4076868]
[1752625759610,6.0757,164.57,164.55,3.4076868]
[1752625759909,241.0956121,164.58,164.47,185.84]
[1752625760106,241.0956121,164.58,164.52,3.4076868]
[1752625760700,6.0761,164.56,164.52,9.4848868]
[1752625761207,6.0761,164.56,164.52,3.4076868]
[1752625762109,6.0758,164.57,164.52,3.4076868]
[1752625762708,5.0956121,164.57,164.53,3.4076868]
[1752625763003,5.0956121,164.56,164.51,3.4076868]
[1752625763408,6.0765,164.55,164.51,3.4076868]
[1752625764309,242.0765,164.55,164.51,3.4076868]
[1752625765310,6.0768,164.54,164.51,3.4076868]
[1752625765511,241.0956121,164.55,164.49,3.4076868]
[1752625765813,6.0767,164.54,164.49,3.4076868]
[1752625767103,11.1723121,164.54,164.49,3.4076868]
[1752625767913,11.1723121,164.54,164.51,3.4076868]
[1752625768611,5.0956121,164.54,164.51,3.4076868]
[1752625768914,242.0766,164.55,164.51,3.4076868]
[1752625769213,247.1722121,164.55,164.51,3.4076868]
[1752625769815,241.0956121,164.55,164.51,9.4853868]
[1752625770113,241.0956121,164.55,164.44,525.32]
[1752625770114,236.0,164.55,164.53,3.4076868]
[1752625770314,5.0956121,164.56,164.53,3.4076868]
[1752625770915,11.1718121,164.56,164.53,3.4076868]
[1752625771817,5.0956121,164.56,164.53,3.4076868]
[1752625774518,236.0,164.58,164.53,3.4076868]
[1752625774715,236.0,164.57,164.53,3.4076868]
[1752625775113,242.0756,164.57,164.53,3.4076868]
[1752625775417,236.0,164.57,164.53,3.4076868]
[1752625776412,236.0,164.57,164.55,3.4076868]
[1752625777014,6.0752,164.58,164.55,3.4076868]
[1752625777919,236.0,164.6,164.55,9.4838868]
[1752625778424,236.0,164.6,164.55,3.4076868]
[1752625778816,6.0749,164.59,164.55,3.4076868]
[1752625779920,6.0749,164.59,164.55,9.4838868]
[1752625781619,242.0745,164.6,164.57,3.4076868]
[1752625781926,6.0745,164.6,164.57,3.4076868]
[1752625783019,421.08,164.62,164.57,9.4830868]
[1752625783020,6.0741,164.61,164.57,9.4830868]
[1752625783225,421.08,164.62,164.52,3.4076868]
[1752625783424,236.0,164.62,164.57,3.4076868]
[1752625783723,10.21042894,164.62,164.56,3.4076868]
[1752625783915,420.72,164.63,164.56,3.4076868]
[1752625784226,6.0741,164.61,164.56,9.4833868]
[1752625784724,6.0741,164.61,164.56,3.4076868]
[1752625786227,6.0744,164.6,164.56,9.4832868]
[1752625786830,6.0748,164.59,164.56,3.4076868]
[1752625787924,427.52274214,164.63,164.58,3.4076868]
[1752625788124,236.0,164.62,164.58,3.4076868]
[1752625788331,6.0745,164.6,164.55,6.076]
[1752625788626,6.0745,164.6,164.56,3.4076868]
[1752625788828,6.0749,164.59,164.56,3.4076868]
[1752625789027,236.0,164.62,164.55,6.076]
[1752625789225,236.0,164.62,164.56,3.4076868]
[1752625789727,6.0746,164.6,164.56,3.4076868]
[1752625790122,236.0,164.62,164.56,3.4076868]
[1752625790932,6.0747,164.6,164.56,3.4076868]
[1752625793937,6.0747,164.6,164.55,6.076]
[1752625795033,242.0741,164.61,164.57,3.4076868]
[1752625795636,6.0744,164.6,164.57,3.4076868]
[1752625796236,242.0741,164.61,164.57,3.4076868]
[1752625797036,242.0741,164.61,164.57,9.4831868]
[1752625797532,236.0,164.61,164.59,3.4076868]
[1752625798338,242.0743,164.61,164.59,3.4076868]
[1752625799838,242.0743,164.61,164.57,3.4076868]
[1752625800040,248.87704214,164.61,164.57,3.4076868]
[1752625800539,242.80274214,164.61,164.59,3.4076868]
[1752625800837,248.87704214,164.61,164.59,3.4076868]
[1752625802244,242.0743,164.61,164.59,3.4076868]
[1752625802633,242.0743,164.61,164.57,9.4829868]
[1752625803439,236.0,164.61,164.58,6.0751]
[1752625803647,236.0,164.61,164.57,3.4076868]
[1752625804038,236.0,164.61,164.58,6.0751]
[1752625804438,242.0741,164.61,164.58,6.0751]
[1752625806647,242.0741,164.61,164.59,3.4076868]
[1752625806845,236.0,164.61,164.59,3.4076868]
[1752625808154,236.0,164.61,164.59,9.4824868]
[1752625809153,236.0,164.61,164.6,2.18819653]
[1752625811752,236.0,164.61,164.58,6.075]
[1752625812055,236.0,164.61,164.51,183.0]
[1752625812056,236.0,164.61,164.6,2.18819653]
[1752625812253,242.80274214,164.61,164.6,2.18819653]
[1752625812556,242.80274214,164.61,164.6,8.26259653]
[1752625812755,236.0,164.61,164.6,8.26259653]
[1752625813645,236.0,164.61,164.6,2.18819653]
[1752625814151,242.80274214,164.61,164.51,183.0]
[1752625814351,242.80274214,164.61,164.6,2.18819653]
[1752625814854,6.80274214,164.61,164.6,2.18819653]
[1752625816155,16.27801321,164.62,164.6,2.18819653]
[1752625816358,10.20411321,164.62,164.6,2.18819653]
[1752625818057,10.20411321,164.62,164.61,2.18819653]
[1752625820959,6.8263519,164.63,164.61,2.18819653]
[1752625821159,6.8263519,164.63,164.62,2.18819653]
[1752625821857,6.8263519,164.64,164.62,8.26189653]
[1752625822056,6.8263519,164.64,164.63,2.18819653]
[1752625822756,10.20411321,164.65,164.63,2.18819653]
[1752625822957,10.24779807,164.65,164.63,2.18819653]
[1752625823558,10.24779807,164.65,164.64,2.18819653]
[1752625824259,0.04368486,164.65,164.64,2.18819653]
[1752625825563,0.04368486,164.65,164.62,6.11406027]
[1752625825758,0.04368486,164.65,164.64,2.18819653]
[1752625829564,12.4359946,164.65,164.62,0.04056027]
[1752625829767,10.22305211,164.64,164.62,0.04056027]
[1752625829962,16.29635211,164.63,164.62,0.04056027]
[1752625831762,2.18819653,164.63,164.5,525.16]
[1752625831969,2.18819653,164.58,164.54,2.18819653]
[1752625832164,10.22454816,164.57,164.54,2.18819653]
[1752625832465,2.18819653,164.56,164.52,2.18819653]
[1752625832673,2.18819653,164.55,164.51,2.18819653]
[1752625832860,2.18819653,164.55,164.41,530.15011625]
[1752625832861,2.18819653,164.52,164.42,4.62061073]
[1752625833060,2.18819653,164.51,164.41,525.06]
[1752625833260,2.18819653,164.5,164.41,525.06]
[1752625833469,2.18819653,164.5,164.46,2.18819653]
[1752625833663,0.04287671,164.48,164.47,2.18819653]
[1752625833868,0.04287671,164.48,164.46,2.18819653]
[1752625834068,0.04287671,164.48,164.47,2.18819653]
[1752625834469,0.04287671,164.48,164.43,6.0803]
[1752625834670,0.04287671,164.48,164.47,2.18819653]
[1752625834970,0.04287671,164.48,164.47,2.19200035]
[1752625835167,0.04287671,164.48,164.45,3.40335878]
[1752625837661,0.04287671,164.48,164.45,9.48325878]
[1752625837960,10.22454816,164.56,164.47,3.40335878]
[1752625838164,181.66,164.56,164.51,3.40335878]
[1752625838369,187.7361,164.56,164.51,3.40335878]
[1752625838565,181.66,164.56,164.43,3.40335878]
[1752625838870,185.06335878,164.56,164.49,3.40335878]
[1752625839666,3.40335878,164.56,164.49,9.48155878]
[1752625839868,6.0765,164.55,164.49,9.48155878]
[1752625840469,6.0765,164.55,164.5,6.0781]
[1752625841371,6.076,164.56,164.51,3.40335878]
[1752625841975,6.0763,164.55,164.51,3.40335878]
[1752625844169,236.0,164.54,164.51,3.40335878]
[1752625845775,242.0766,164.54,164.51,3.40335878]
[1752625845977,236.0,164.54,164.41,525.32]
[1752625846174,239.40335878,164.53,164.46,3.40335878]
[1752625846473,534.54835878,164.61,164.48,3.40335878]
[1752625846474,236.0,164.52,164.48,3.40335878]
[1752625847775,242.0776,164.52,164.48,3.40335878]
[1752625852477,242.0776,164.52,164.47,6.0792]
[1752625852778,242.0776,164.52,164.49,3.40335878]
[1752625855773,182.18,164.51,164.46,3.40335878]
[1752625856173,236.0,164.5,164.46,3.40335878]
[1752625856578,242.0782,164.5,164.46,3.40335878]
[1752625858075,236.0,164.5,164.46,3.40335878]
[1752625858375,236.0,164.5,164.48,3.40335878]
[1752625864890,242.0781,164.5,164.48,3.40335878]
[1752625865791,242.0781,164.5,164.46,6.0794]
[1752625866089,6.0785,164.49,164.46,3.40335878]
[1752625866484,242.0783,164.5,164.46,3.40335878]
[1752625866686,236.0,164.5,164.48,3.40335878]
[1752625867082,236.0,164.5,164.48,9.48195878]
[1752625867288,236.0,164.5,164.48,3.40335878]
[1752625868986,236.0,164.5,164.47,6.079]
[1752625868987,236.0,164.5,164.41,525.32]
[1752625869192,417.58,164.5,164.46,3.40335878]
[1752625869587,423.6584,164.5,164.46,3.40335878]
[1752625869992,181.58,164.5,164.46,3.40335878]
[1752625870589,6.0788,164.49,164.46,3.40335878]
[1752625871892,187.6583,164.5,164.46,9.48275878]
[1752625872096,181.58,164.5,164.46,3.40335878]
[1752625872795,181.58,164.5,164.46,9.48265878]
[1752625872796,187.6584,164.5,164.46,9.48265878]
[1752625874594,181.58,164.5,164.46,3.40335878]
[1752625875196,236.0,164.49,164.39,91.50743118]
[1752625875401,236.0,164.49,164.45,3.40335878]
[1752625876600,6.0789,164.48,164.45,3.40335878]
[1752625876799,236.0,164.49,164.45,3.40335878]
[1752625878202,6.0791,164.48,164.45,3.40335878]
[1752625878603,236.0,164.49,164.45,3.40335878]
[1752625878806,242.0786,164.49,164.45,9.48325878]
[1752625879900,6.0786,164.49,164.45,6.0799]
[1752625880107,6.0788,164.48,164.45,3.40335878]
[1752625882706,6.0787,164.49,164.45,9.48315878]
[1752625883105,181.58,164.5,164.45,3.40335878]
[1752625883407,181.44,164.52,164.47,3.40335878]
[1752625884208,181.44,164.53,164.49,3.40335878]
[1752625885207,6.0776,164.52,164.49,3.40335878]
[1752625885410,181.44,164.53,164.49,3.40335878]
[1752625887015,181.44,164.53,164.49,3.44862577]
[1752625887216,6.0774,164.52,164.49,3.44862577]
[1752625888709,242.0774,164.52,164.49,3.44862577]
[1752625889212,6.0777,164.51,164.49,0.04526699]
[1752625889422,6.0777,164.51,164.49,3.44862577]
[1752625892116,242.0775,164.52,164.49,3.44862577]
[1752625895118,236.0,164.52,164.49,9.52682577]
[1752625895417,236.0,164.52,164.49,3.44862577]
[1752625895916,242.0776,164.52,164.49,3.44862577]
[1752625897821,6.0778,164.51,164.49,3.44862577]
[1752625899315,242.0775,164.52,164.49,3.44862577]
[1752625903222,236.0,164.52,164.51,3.40335878]
[1752625906128,236.0,164.52,164.51,9.48105878]
[1752625906827,236.0,164.52,164.51,3.40335878]
[1752625907427,242.0774,164.52,164.49,9.52692577]
[1752625907629,236.0,164.52,164.49,9.52692577]
[1752625907828,236.0,164.52,164.49,3.44862577]
[1752625909026,236.0,164.52,164.5,6.0779]
[1752625909626,236.0,164.52,164.51,6.0777]
[1752625909828,236.0,164.52,164.51,9.48105878]
[1752625913035,236.0,164.52,164.51,9.47832086]
[1752625914335,236.0,164.52,164.51,8.26796956]
[1752625915136,0.04019188,164.53,164.51,8.26796956]
[1752625915341,0.04019188,164.53,164.52,6.0774]
[1752625916337,0.04019188,164.53,164.49,0.04526699]
[1752625916533,181.26,164.52,164.5,2.19026956]
[1752625917539,181.26,164.52,164.5,8.26836956]
[1752625917743,181.26,164.52,164.51,2.19026956]
[1752625917934,181.30019188,164.53,164.51,2.19026956]
[1752625919040,181.30019188,164.53,164.51,2.19075762]
[1752625919242,181.30019188,164.53,164.5,6.0781]
[1752625920041,181.28019188,164.53,164.5,6.0781]
[1752625921040,0.04019188,164.53,164.5,6.0781]
[1752625921241,236.0,164.52,164.5,6.0781]
[1752625921441,236.0,164.52,164.51,6.0777]
[1752625921641,236.0,164.52,164.51,9.47912071]
[1752625922439,181.22,164.55,164.51,3.40142071]
[1752625922630,181.22,164.55,164.54,3.40142071]
[1752625923530,119.84805106,164.57,164.54,3.40142071]
[1752625923940,10.22454816,164.59,164.56,3.40142071]
[1752625924140,181.2,164.59,164.56,3.40142071]
[1752625924440,24.7939367,164.61,164.57,6.0752]
[1752625924641,181.2,164.6,164.57,6.0752]
[1752625925435,18.7196367,164.61,164.58,9.47652071]
[1752625925637,199.9196367,164.61,164.58,9.47652071]
[1752625927435,199.9196367,164.61,164.59,6.0748]
[1752625927639,181.2,164.61,164.58,3.40142071]
[1752625927842,181.16,164.63,164.58,3.40142071]
[1752625928040,181.16,164.63,164.6,6.0742]
[1752625928446,181.16,164.64,164.6,9.47562071]
[1752625928642,181.16,164.64,164.6,9.51423258]
[1752625929240,181.16,164.64,164.61,6.074]
[1752625929746,181.16,164.64,164.6,9.51433258]
[1752625930244,181.16,164.64,164.6,6.11291187]
[1752625930846,187.2329,164.64,164.6,0.03861187]
[1752625931248,181.16,164.64,164.6,0.03861187]
[1752625933252,181.16,164.64,164.6,6.11291187]
[1752625935245,181.16,164.64,164.6,0.03861187]
[1752625936149,187.2329,164.64,164.6,0.03861187]
[1752625936742,181.16,164.64,164.6,0.03861187]
[1752625936947,6.0733,164.63,164.6,0.03861187]
[1752625937650,3.40142071,164.61,164.54,3.40142071]
[1752625937952,181.04,164.6,164.54,3.40142071]
[1752625938151,187.1147,164.6,164.55,6.0761]
[1752625940841,187.1147,164.6,164.56,6.0758]
[1752625943152,187.15526367,164.6,164.56,6.11790904]
[1752625944353,187.15526367,164.6,164.56,0.04210904]
[1752625944354,3.40142071,164.59,164.56,0.04210904]
[1752625944550,211.29406452,164.6,164.56,0.04210904]
[1752625944551,3.40142071,164.57,164.56,0.04210904]
[1752625944745,3.40142071,164.57,164.5,3.40142071]
[1752625944746,184.40142071,164.57,164.48,3.40142071]
[1752625944949,3.40142071,164.55,164.44,175.58]
[1752625945151,181.0,164.54,164.47,3.40142071]
[1752625945751,187.0767,164.54,164.49,6.0784]
[1752625946052,0.04019604,164.52,164.49,6.0784]
[1752625946253,0.04019604,164.52,164.5,6.0781]
[1752625946848,0.04019604,164.52,164.47,3.40142071]
[1752625946849,0.04019604,164.52,164.49,6.0783]
[1752625947353,0.04019604,164.52,164.47,3.40142071]
[1752625948254,0.04019604,164.52,164.49,6.0782]
[1752625950760,3.40142071,164.51,164.43,3.40142071]
[1752625951457,0.04668212,164.49,164.44,6.0801]
[1752625951859,0.04668212,164.49,164.45,6.0799]
[1752625953150,0.04668212,164.49,164.46,6.0795]
[1752625953350,0.04668212,164.49,164.43,3.40142071]
[1752625953754,0.04668212,164.49,164.45,3.40142071]
[1752625954954,0.04668212,164.49,164.48,6.0788]
[1752625960764,111.90795104,164.54,164.51,6.0775]
[1752625960963,111.90795104,164.54,164.5,3.40142071]
[1752625961264,111.90795104,164.54,164.52,3.40142071]
[1752625961562,111.90795104,164.54,164.53,6.077]
[1752625961762,18.63927408,164.59,164.53,6.077]
[1752625961962,18.63927408,164.59,164.55,9.47762071]
[1752625962463,18.63927408,164.59,164.55,3.40142071]
[1752625964064,22.04069479,164.59,164.53,3.40142071]
[1752625964264,22.04069479,164.59,164.51,3.40142071]
[1752625965360,6.0757,164.57,164.51,9.47892071]
[1752625965962,6.0752,164.58,164.52,6.0771]
[1752625966171,6.0752,164.58,164.53,3.40142071]
[1752625966768,6.0749,164.59,164.53,3.40142071]
[1752625968968,6.0749,164.59,164.53,9.47822071]
[1752625970969,6.0749,164.59,164.54,6.0766]
[1752625975472,36.28800085,164.6,164.55,6.0762]
[1752625976266,6.0748,164.59,164.54,6.0764]
[1752625976671,6.0748,164.59,164.55,6.0762]
[1752625976868,36.28810085,164.6,164.55,6.0762]
[1752625978973,6.0748,164.59,164.55,6.0762]
[1752625980073,36.28800085,164.6,164.55,6.0762]
[1752625980377,30.21350085,164.6,164.54,6.0764]
[1752625980574,33.61492156,164.6,164.48,180.92]
[1752625980774,33.61492156,164.6,164.52,3.40142071]
[1752625981876,3.40142071,164.58,164.52,3.40142071]
[1752625982773,6.0757,164.57,164.52,9.47852071]
[1752625982978,6.0757,164.57,164.52,3.40142071]
[1752625984177,6.0757,164.57,164.53,6.077]
[1752625984483,6.076,164.56,164.52,3.40142071]
[1752625984874,6.076,164.56,164.52,9.47852071]
[1752625985581,6.0757,164.57,164.52,9.47852071]
[1752625985985,33.61492156,164.6,164.53,6.0768]
[1752625986181,33.61492156,164.6,164.52,3.40142071]
[1752625986182,6.0753,164.58,164.52,3.40142071]
[1752625986786,6.0753,164.58,164.54,6.0766]
[1752625989289,6.0749,164.59,164.54,3.40142071]
[1752625989588,30.21350085,164.6,164.54,3.40142071]
[1752625990986,194.52865934,164.61,164.54,3.40142071]
[1752625991187,6.0752,164.58,164.54,9.47782071]
[1752625992384,3.40142071,164.59,164.44,5.05803103]
[1752625992690,3.40142071,164.55,164.47,3.40142071]
[1752625993388,6.0771,164.53,164.48,6.0787]
[1752625993790,3.40142071,164.55,164.48,6.0787]
[1752625994186,3.40142071,164.55,164.49,6.0785]
[1752625994187,6.077,164.53,164.49,6.0785]
[1752625995386,6.0768,164.54,164.47,3.40142071]
[1752625995788,3.40142071,164.55,164.47,3.40142071]
[1752625996493,3.40142071,164.57,164.49,3.40142071]
[1752625997387,6.0765,164.55,164.51,6.0775]
[1752625998490,6.0769,164.54,164.44,5.05803103]
[1752625998683,6.0769,164.54,164.49,3.40142071]
[1752625998886,30.21350085,164.58,164.49,3.40142071]
[1752625999085,6.0764,164.55,164.51,6.0775]
[1752626000594,304.21083624,164.59,164.52,6.0773]
[1752626000796,304.21083624,164.59,164.52,9.47872071]
[1752626001191,6.0757,164.57,164.52,9.47872071]
[1752626002800,6.076,164.56,164.52,3.40142071]
[1752626003302,6.0764,164.55,164.5,9.47942071]
[1752626003495,3.40142071,164.56,164.5,3.40142071]
[1752626003898,3.40142071,164.56,164.43,189.01945174]
[1752626004098,3.40142071,164.56,164.49,3.40142071]
[1752626004898,6.0769,164.54,164.5,6.0779]
[1752626005094,10.18723863,164.59,164.49,3.40142071]
[1752626005295,6.0761,164.56,164.51,3.40142071]
[1752626005598,3.40142071,164.57,164.51,3.40142071]
[1752626005794,6.0767,164.54,164.49,9.47972071]
[1752626006401,6.0771,164.53,164.49,9.47972071]
[1752626008001,6.0768,164.54,164.5,6.078]
[1752626009697,6.0764,164.55,164.5,6.078]
[1752626010294,6.0761,164.56,164.51,6.0775]
[1752626010500,3.40142071,164.57,164.51,6.0775]
[1752626011603,3.40142071,164.57,164.5,6.0781]
[1752626012005,3.40142071,164.57,164.49,3.40142071]
[1752626012204,3.40142071,164.57,164.49,9.47972071]